bitfinex/quotes_ETHUSD_20250217
["timestamp","ask_amount","ask_price","bid_price","bid_amount"]
[1739830232322,2.89337477,2770.2,2769.8,0.8055]
[1739830232522,0.05232547,2770.1,2769.8,0.8055]
[1739830232734,0.00541535,2769.9,2769.8,0.8055]
[1739830233133,0.00541535,2769.9,2769.8,3.69379]
[1739830233335,0.00541535,2769.9,2769.8,0.8055]
[1739830234064,0.00541535,2769.9,2769.8,3.69379]
[1739830234436,0.00541535,2769.9,2769.8,4.352008]
[1739830234831,0.00541535,2769.9,2769.8,4.379708]
[1739830236275,0.00541535,2769.9,2769.8,4.929708]
[1739830237583,0.00541535,2769.9,2769.8,4.96580333]
[1739830237893,0.00541535,2769.9,2769.8,4.929708]
[1739830238555,0.00541535,2769.9,2769.8,4.96580334]
[1739830239019,0.00541535,2769.9,2769.8,7.929708]
[1739830239224,5.35e-06,2769.9,2769.8,8.18571442]
[1739830239820,5.35e-06,2769.9,2769.8,11.88399069]
[1739830240022,0.00541477,2770.2,2769.9,3.55]
[1739830240220,4.77e-06,2770.2,2770.1,10.93385627]
[1739830240473,8.95e-06,2770.5,2770.4,5.88766]
[1739830240630,8.95e-06,2770.5,2770.4,10.41961806]
[1739830240829,8.95e-06,2770.5,2770.4,10.38353627]
[1739830241031,8.95e-06,2770.5,2770.4,10.93353627]
[1739830241227,8.95e-06,2770.5,2770.4,12.59897332]
[1739830244295,8.95e-06,2770.5,2770.4,13.31019111]
[1739830246657,8.95e-06,2770.5,2770.4,8.90069705]
[1739830247149,0.05263432,2770.5,2770.4,8.35069705]
[1739830247354,0.05263432,2770.5,2770.4,6.94126642]
[1739830247567,0.05263432,2770.5,2770.4,6.68526]
[1739830248194,0.05263432,2770.5,2770.4,3.68526]
[1739830248782,0.05263432,2770.5,2770.3,0.00541457]
[1739830249116,8.95e-06,2770.5,2770.3,0.00541457]
[1739830249430,0.0523529,2770.4,2770.3,0.00541457]
[1739830250714,2.9400129,2770.4,2770.3,0.00541457]
[1739830250915,3.31383509,2770.4,2770.3,0.00541457]
[1739830251817,0.42617509,2770.4,2770.3,0.00541457]
[1739830251993,0.0523529,2770.4,2770.3,0.00541457]
[1739830252420,2.9400129,2770.4,2770.3,0.00541457]
[1739830252942,0.0523529,2770.4,2770.3,0.00541457]
[1739830253988,0.0523529,2770.4,2770.3,2.89318457]
[1739830255491,0.0523529,2770.4,2770.3,4.23828021]
[1739830255723,0.0523529,2770.4,2770.3,8.6491631]
[1739830255925,8.95e-06,2770.5,2770.4,3.64666]
[1739830257234,8.95e-06,2770.5,2770.4,3.68274885]
[1739830257551,8.95e-06,2770.5,2770.4,3.64666]
[1739830258040,8.95e-06,2770.5,2770.4,3.68274885]
[1739830258264,8.95e-06,2770.5,2770.4,5.196664]
[1739830258475,8.95e-06,2770.5,2770.4,5.45251093]
[1739830260165,8.95e-06,2770.5,2770.4,5.41642208]
[1739830260369,8.95e-06,2770.5,2770.4,0.25584693]
[1739830260699,0.05207669,2770.5,2770.4,0.25584693]
[1739830261139,0.05207669,2770.5,2770.4,3.14350693]
[1739830261745,0.05207669,2770.5,2770.4,3.69350693]
[1739830261939,8.95e-06,2770.5,2770.4,3.87749008]
[1739830262394,8.95e-06,2770.5,2770.4,2.88766]
[1739830264343,0.05175133,2770.5,2770.3,2.89312457]
[1739830264658,8.95e-06,2770.5,2770.4,2.88766]
[1739830266500,8.95e-06,2770.5,2770.4,3.43766]
[1739830266728,8.95e-06,2770.5,2770.4,4.19686]
[1739830266950,8.95e-06,2770.5,2770.3,0.00541457]
[1739830267363,2.88756895,2770.5,2770.3,0.00541457]
[1739830267564,3.7309318,2770.4,2770.3,0.00541457]
[1739830267999,12.82146801,2770.4,2770.3,0.00541457]
[1739830268216,19.48377248,2770.4,2770.3,0.00541457]
[1739830268502,21.72090662,2770.4,2770.3,0.00541457]
[1739830270543,2.88798,2770.1,2770.0,0.00541516]
[1739830270842,16.43282807,2770.1,2770.0,0.00541516]
[1739830270982,16.39685627,2770.1,2770.0,0.00541516]
[1739830271184,18.3253289,2770.1,2770.0,0.00541516]
[1739830271437,21.37588794,2770.1,2770.0,0.00541516]
[1739830272536,28.87588794,2770.1,2770.0,5.16e-06]
[1739830272682,6.68269,2769.8,2769.7,0.00541574]
[1739830272883,27.62602458,2769.8,2769.7,0.00541574]
[1739830273302,27.64020622,2769.8,2769.7,0.00541574]
[1739830273760,27.82288399,2769.8,2769.7,0.00541574]
[1739830277965,11.1549,2769.5,2769.1,0.00541692]
[1739830278172,28.60051627,2769.5,2769.1,0.00541692]
[1739830278330,28.92298183,2769.5,2769.1,0.00541692]
[1739830281878,28.92298183,2769.5,2769.4,6.33e-06]
[1739830282024,11.15522,2769.2,2769.1,0.00541692]
[1739830282379,27.57875672,2769.2,2769.1,6.92e-06]
[1739830282588,14.15553,2768.9,2768.8,0.0054175]
[1739830282739,26.89980627,2768.9,2768.8,0.0054175]
[1739830283083,26.94779198,2768.9,2768.8,0.0054175]
[1739830283379,15.74951571,2768.9,2768.8,0.0054175]
[1739830283587,12.86028571,2768.9,2768.8,0.0054175]
[1739830283728,7.5,2768.3,2768.2,0.00541868]
[1739830283924,3.0,2768.1,2767.9,0.00541927]
[1739830284123,2.89015,2768.1,2767.9,0.00541927]
[1739830284323,0.08282698,2768.0,2767.9,0.00541927]
[1739830284596,3.53431288,2768.0,2767.9,0.00541927]
[1739830285876,0.64414288,2768.0,2767.9,0.00541927]
[1739830286036,0.04685518,2768.0,2767.9,0.00541927]
[1739830286239,2.89009,2768.1,2767.9,0.00541927]
[1739830286571,0.04646967,2768.0,2767.9,0.00541927]
[1739830286774,3.23029564,2768.0,2767.9,0.00541927]
[1739830286924,3.26626744,2768.0,2767.9,0.00541927]
[1739830287126,3.23029564,2768.0,2767.9,0.00541927]
[1739830287337,3.26626744,2768.0,2767.9,0.00541927]
[1739830287661,3.23029564,2768.0,2767.9,0.00541927]
[1739830288225,10.15310729,2768.0,2767.9,0.00541927]
[1739830288425,19.75519883,2768.0,2767.9,0.00541927]
[1739830288626,20.56679883,2768.0,2767.9,0.00541927]
[1739830290449,19.97573549,2768.0,2767.9,0.00541927]
[1739830291056,20.56679883,2768.0,2767.9,0.00541927]
[1739830291568,19.97573549,2768.0,2767.9,0.00541927]
[1739830291862,16.97573549,2768.0,2767.9,0.00541927]
[1739830293082,0.04646967,2768.0,2767.9,0.00541927]
[1739830293483,2.8901,2768.1,2767.9,0.00541927]
[1739830293786,0.04617445,2768.0,2767.9,0.00541927]
[1739830294287,2.93634445,2768.0,2767.9,0.00541927]
[1739830295081,12.61037959,2768.0,2767.9,0.00541927]
[1739830295287,15.31448038,2768.0,2767.9,0.00541927]
[1739830295887,18.31448038,2768.0,2767.9,0.00541927]
[1739830296984,17.72341704,2768.0,2767.9,0.00541927]
[1739830297882,19.89541704,2768.0,2767.9,0.00541927]
[1739830298089,27.39541704,2768.0,2767.9,0.00541927]
[1739830298260,19.89541704,2768.0,2767.9,0.00541927]
[1739830298461,17.72341704,2768.0,2767.9,0.00541927]
[1739830299751,12.5628,2767.4,2767.3,9.76e-06]
[1739830299958,12.5628,2767.4,2767.1,0.005]
[1739830299959,8.063,2767.2,2767.1,0.00420976]
[1739830301111,5.891,2767.2,2767.1,0.00420976]
[1739830301388,5.9269718,2767.2,2767.1,0.00420976]
[1739830301714,6.45976594,2767.2,2767.1,0.00420976]
[1739830302057,6.50535243,2767.2,2767.1,0.00420976]
[1739830303191,7.09641577,2767.2,2767.1,0.00420976]
[1739830304257,10.39111,2767.1,2767.0,0.00122103]
[1739830304494,2.89142,2766.8,2766.7,0.00542162]
[1739830304693,15.67666807,2766.8,2766.7,0.00542162]
[1739830304891,15.68569499,2766.8,2766.7,0.00542162]
[1739830305262,18.68569499,2766.8,2766.7,0.00542162]
[1739830306961,0.04499872,2766.8,2766.7,0.00542162]
[1739830307162,2.93641872,2766.8,2766.7,0.00542162]
[1739830307367,3.18506187,2766.8,2766.7,0.00542162]
[1739830307699,3.22972612,2766.8,2766.7,0.00542162]
[1739830309267,2.93608425,2766.8,2766.7,0.00542162]
[1739830312278,0.04466425,2766.8,2766.7,3.70255162]
[1739830312607,0.00542064,2767.2,2767.0,0.8056]
[1739830312906,2.89111,2767.1,2767.0,0.8056]
[1739830313364,0.00542064,2767.2,2767.0,0.8056]
[1739830313915,0.00542064,2767.2,2767.0,3.69676]
[1739830314511,0.00542064,2767.2,2767.1,3.69671]
[1739830316074,6.4e-07,2767.2,2767.1,7.94498627]
[1739830316274,6.4e-07,2767.2,2767.1,8.20275878]
[1739830317772,6.4e-07,2767.2,2767.1,4.50448251]
[1739830318795,6.4e-07,2767.2,2767.1,5.24405176]
[1739830318994,6.4e-07,2767.2,2767.1,5.28018617]
[1739830319181,6.4e-07,2767.2,2767.1,5.24405176]
[1739830322478,6.4e-07,2767.2,2767.1,5.28018184]
[1739830322682,6.4e-07,2767.2,2767.1,5.24405176]
[1739830326528,6.9e-07,2767.5,2767.4,2.8908]
[1739830326715,1.5e-07,2767.8,2767.7,2.89048]
[1739830326888,1.5e-07,2767.8,2767.7,7.41755627]
[1739830327087,1.5e-07,2767.8,2767.7,10.96755627]
[1739830327309,1.5e-07,2767.8,2767.7,12.3533699]
[1739830328488,1.5e-07,2767.8,2767.7,12.61114241]
[1739830331603,1.5e-07,2767.8,2767.7,13.32416933]
[1739830332507,1.5e-07,2767.8,2767.7,9.62589306]
[1739830333731,1.5e-07,2767.8,2767.7,9.72589306]
[1739830335425,1.5e-07,2767.8,2767.7,9.62589306]
[1739830335613,1.5e-07,2767.8,2767.7,4.69007943]
[1739830335815,1.5e-07,2767.8,2767.7,3.14825251]
[1739830336509,1.5e-07,2767.8,2767.7,3.18438041]
[1739830336700,1.5e-07,2767.8,2767.7,3.14825251]
[1739830337339,1.5e-07,2767.8,2767.7,2.89048]
[1739830338173,1.5e-07,2767.8,2767.6,0.00541985]
[1739830338446,1.07402802,2767.7,2767.6,0.00541985]
[1739830338844,0.785,2767.7,2767.6,0.00541985]
[1739830339821,3.67548,2767.7,2767.6,0.00541985]
[1739830341910,0.785,2767.7,2767.6,0.00541985]
[1739830342351,3.67548,2767.7,2767.6,0.00541985]
[1739830342714,0.785,2767.7,2767.6,0.00541985]
[1739830347220,1.5e-07,2767.8,2767.6,0.00541985]
[1739830347415,1.5e-07,2767.8,2767.7,2.89048]
[1739830349369,1.5e-07,2767.8,2767.7,3.46912799]
[1739830350357,1.5e-07,2767.8,2767.7,2.89048]
[1739830351953,1.5e-07,2767.8,2767.7,4.20978]
[1739830353112,1.5e-07,2767.8,2767.7,10.94417776]
[1739830353316,1.5e-07,2767.8,2767.7,10.90805627]
[1739830353459,1.5e-07,2767.8,2767.7,11.16612768]
[1739830353793,1.5e-07,2767.8,2767.7,12.64467102]
[1739830355162,1.5e-07,2767.8,2767.7,8.94639475]
[1739830357215,0.00541829,2768.4,2767.7,8.94639475]
[1739830357216,8.29e-06,2768.4,2768.3,2.88986]
[1739830357423,0.0054177,2768.7,2768.6,2.88954]
[1739830357563,0.0054177,2768.7,2768.6,7.71573427]
[1739830358010,0.0054177,2768.7,2768.6,8.50633427]
[1739830358683,0.0054177,2768.7,2768.6,8.76440568]
[1739830359667,7.7e-06,2768.7,2768.6,8.76440568]
[1739830359860,7.7e-06,2768.7,2768.6,12.50372611]
[1739830360062,4.81e-06,2769.0,2768.9,10.41290627]
[1739830360362,4.81e-06,2769.0,2768.9,12.16795752]
[1739830360700,4.81e-06,2769.0,2768.9,12.71795752]
[1739830361299,1.34e-06,2769.3,2769.2,2.88892]
[1739830361458,1.34e-06,2769.3,2769.2,11.21329658]
[1739830361659,1.34e-06,2769.3,2769.2,11.17719627]
[1739830361918,1.34e-06,2769.3,2769.2,12.7138179]
[1739830362063,1.34e-06,2769.3,2769.2,12.9138179]
[1739830362598,0.00541594,2769.6,2769.2,12.9138179]
[1739830362599,7.28e-06,2769.6,2769.5,10.89387627]
[1739830363666,7.28e-06,2769.6,2769.5,11.15194768]
[1739830368726,7.28e-06,2769.6,2769.5,11.33180261]
[1739830369018,7.28e-06,2769.6,2769.5,12.76385387]
[1739830369923,7.28e-06,2769.6,2769.5,8.33572267]
[1739830370110,7.28e-06,2769.6,2769.5,3.14667141]
[1739830370419,7.28e-06,2769.6,2769.5,7.431047]
[1739830370796,7.28e-06,2769.6,2769.5,7.17297559]
[1739830372016,7.28e-06,2769.6,2769.5,10.97607559]
[1739830372323,7.28e-06,2769.6,2769.5,12.60845483]
[1739830374396,7.28e-06,2769.6,2769.5,11.78645483]
[1739830374599,7.28e-06,2769.6,2769.5,12.05845483]
[1739830374897,7.28e-06,2769.6,2769.5,10.40887627]
[1739830378936,7.28e-06,2769.6,2769.5,10.66523656]
[1739830380808,7.28e-06,2769.6,2769.5,3.14496029]
[1739830381999,7.28e-06,2769.6,2769.5,2.8886]
[1739830384318,7.28e-06,2769.6,2769.5,3.14611541]
[1739830386538,7.28e-06,2769.6,2769.5,3.75013958]
[1739830386921,7.28e-06,2769.6,2769.5,4.01785092]
[1739830387257,7.28e-06,2769.6,2769.5,8.26612719]
[1739830387429,7.28e-06,2769.6,2769.5,9.03672719]
[1739830387638,7.28e-06,2769.6,2769.5,12.03672719]
[1739830388019,7.28e-06,2769.6,2769.5,0.52522675]
[1739830388240,7.28e-06,2769.6,2769.5,3.41382675]
[1739830388943,7.28e-06,2769.6,2769.5,0.52522675]
[1739830389306,3.71900728,2769.6,2769.5,0.52522675]
[1739830389533,12.76100728,2769.6,2769.5,0.25751541]
[1739830389707,15.23337981,2769.6,2769.5,0.25751541]
[1739830389905,3.30287981,2769.6,2769.5,0.25751541]
[1739830390111,0.83050728,2769.6,2769.5,0.25751541]
[1739830390546,0.83050728,2769.6,2769.5,3.14611541]
[1739830390853,7.28e-06,2769.6,2769.5,3.14611541]
[1739830391004,7.28e-06,2769.6,2769.5,2.8886]
[1739830391619,7.28e-06,2769.6,2769.4,0.00541633]
[1739830391963,0.831,2769.5,2769.4,0.00541633]
[1739830392470,1.20294973,2769.5,2769.4,0.00541633]
[1739830393349,4.12752153,2769.5,2769.4,0.00541633]
[1739830393506,13.13354973,2769.5,2769.4,0.00541633]
[1739830393750,4.09154973,2769.5,2769.4,0.00541633]
[1739830394980,1.20294973,2769.5,2769.4,0.00541633]
[1739830395360,4.09154973,2769.5,2769.4,0.00541633]
[1739830395563,4.12752153,2769.5,2769.4,0.00541633]
[1739830395889,13.13354973,2769.5,2769.4,0.00541633]
[1739830396608,4.09154973,2769.5,2769.4,0.00541633]
[1739830396757,0.831,2769.5,2769.4,0.00541633]
[1739830397389,3.7196,2769.5,2769.4,0.00541633]
[1739830398110,12.7616,2769.5,2769.4,0.00541633]
[1739830399314,19.45987627,2769.5,2769.4,0.00541633]
[1739830399800,3.70732,2769.2,2769.1,0.00541692]
[1739830400013,17.10821027,2769.2,2769.1,0.00541692]
[1739830400311,13.409934,2769.2,2769.1,0.00541692]
[1739830402338,4.366934,2769.2,2769.1,0.00541692]
[1739830406340,6.538934,2769.2,2769.1,0.00541692]
[1739830406634,4.4029058,2769.2,2769.1,0.00541692]
[1739830406836,4.366934,2769.2,2769.1,0.00541692]
[1739830408119,4.4029058,2769.2,2769.1,0.00541692]
[1739830410143,13.4459058,2769.2,2769.1,0.00541692]
[1739830410346,13.409934,2769.2,2769.1,0.00541692]
[1739830410525,13.59836795,2769.2,2769.1,0.00541692]
[1739830424142,10.04983395,2769.2,2769.1,0.00541692]
[1739830424432,2.88892,2769.2,2769.1,0.00541692]
[1739830424726,8.23423653,2769.3,2769.1,0.00541692]
[1739830424923,11.12313653,2769.3,2769.1,0.00541692]
[1739830425221,8.23423653,2769.3,2769.1,0.00541692]
[1739830425376,2.88892,2769.2,2769.1,0.00541692]
[1739830428215,16.90350745,2769.2,2769.1,0.00541692]
[1739830428503,16.86753565,2769.2,2769.1,0.00541692]
[1739830430029,17.58612624,2769.2,2769.1,0.00541692]
[1739830434002,22.92612624,2769.2,2769.1,0.00541692]
[1739830445424,22.20753565,2769.2,2769.1,0.00541692]
[1739830450646,21.38423565,2769.2,2769.1,0.00541692]
[1739830455079,5.34,2769.2,2769.1,0.00541692]
[1739830455294,11.2648918,2769.2,2769.1,0.00541692]
[1739830455578,20.27192,2769.2,2769.1,0.00541692]
[1739830457358,11.22892,2769.2,2769.1,0.00541692]
[1739830459844,24.72939627,2769.2,2769.1,0.00541692]
[1739830460155,27.62346161,2769.2,2769.1,0.00541692]
[1739830460576,28.02368124,2769.2,2769.1,0.00541692]
[1739830461147,3.0,2768.8,2768.5,0.00541809]
[1739830461346,7.48587627,2768.6,2768.3,0.25923057]
[1739830461566,5.88975,2768.4,2768.3,0.25923057]
[1739830461881,14.93575,2768.4,2768.3,0.25923057]
[1739830462399,2.88986,2768.3,2768.2,0.00541868]
[1739830462690,2.9258318,2768.3,2768.2,0.00541868]
[1739830462986,3.67536,2768.3,2768.2,0.00541868]
[1739830463141,6.56942534,2768.3,2768.2,0.00541868]
[1739830464179,5.78392534,2768.3,2768.2,0.00541868]
[1739830464373,11.9718318,2768.3,2768.2,0.00541868]
[1739830464574,11.93586,2768.3,2768.2,0.00541868]
[1739830466483,14.93586,2768.3,2768.2,0.00541868]
[1739830473747,24.74673627,2768.3,2768.2,8.68e-06]
[1739830474888,5.89048,2767.7,2767.6,0.00541985]
[1739830475051,24.01372807,2767.7,2767.6,0.00541985]
[1739830475250,23.97775627,2767.7,2767.6,0.00541985]
[1739830475788,24.75035627,2767.7,2767.6,0.00541985]
[1739830476548,20.27948,2767.7,2767.6,0.00541985]
[1739830476775,21.59798282,2767.7,2767.6,0.00541985]
[1739830476955,26.06885909,2767.7,2767.6,9.85e-06]
[1739830477366,5.89111,2767.1,2767.0,0.00542103]
[1739830477566,18.67635807,2767.1,2767.0,0.00542103]
[1739830477767,21.43565208,2767.1,2767.0,0.00542103]
[1739830478372,17.73737581,2767.1,2767.0,0.00542103]
[1739830478970,21.43565208,2767.1,2767.0,0.00542103]
[1739830482936,12.051,2767.1,2767.0,0.00542103]
[1739830483232,2.89111,2767.1,2767.0,0.00542103]
[1739830483379,2.9270818,2767.1,2767.0,0.00542103]
[1739830483587,5.34,2767.2,2767.0,0.76742103]
[1739830484428,2.89083,2767.4,2767.0,0.76742103]
[1739830484639,2.89068,2767.6,2767.0,0.76742103]
[1739830484837,2.89587946,2767.8,2767.2,3.65293]
[1739830485132,2.89049,2767.7,2767.2,0.762]
[1739830486109,0.00542005,2767.5,2767.2,0.762]
[1739830487539,0.00542005,2767.5,2767.2,0.3658441]
[1739830487738,0.00542005,2767.5,2767.4,3.6528]
[1739830488056,0.00542005,2767.5,2767.4,0.762]
[1739830488263,0.00542005,2767.5,2767.4,3.6528]
[1739830490859,0.00542005,2767.5,2767.4,0.762]
[1739830491506,2.89611005,2767.5,2767.4,0.762]
[1739830491717,3.47477106,2767.5,2767.1,0.7936]
[1739830491998,0.00542005,2767.5,2767.1,3.6847]
[1739830492611,0.00542005,2767.5,2767.1,0.7936]
[1739830493341,2.89613005,2767.5,2767.1,0.7936]
[1739830493502,2.89093,2767.3,2767.0,0.00542103]
[1739830493907,2.89111,2767.1,2767.0,0.00542103]
[1739830494139,3.469314,2767.1,2767.0,0.00542103]
[1739830494339,12.519314,2767.1,2767.0,0.00542103]
[1739830497341,15.519314,2767.1,2767.0,0.00542103]
[1739830500362,5.89111,2767.1,2767.0,0.00542103]
[1739830503264,3.0,2767.1,2767.0,0.00542103]
[1739830503682,5.89111,2767.1,2767.0,0.00542103]
[1739830504625,3.0,2767.1,2767.0,0.00542103]
[1739830505042,5.89111,2767.1,2767.0,0.00542103]
[1739830505442,5.9270818,2767.1,2767.0,0.00542103]
[1739830505643,6.80943304,2767.1,2767.0,0.00542103]
[1739830506989,12.14943304,2767.1,2767.0,0.00542103]
[1739830507126,2.89142,2766.8,2766.7,0.00542162]
[1739830507327,19.50166807,2766.8,2766.7,0.00542162]
[1739830507589,5.89142,2766.8,2766.7,0.00542162]
[1739830508029,3.0,2766.8,2766.7,0.00542162]
[1739830508230,2.89117,2767.1,2766.7,0.00542162]
[1739830508469,2.89648064,2767.2,2766.8,0.7841]
[1739830508666,0.00542064,2767.2,2766.8,0.7841]
[1739830508865,2.89111,2767.1,2766.8,0.7841]
[1739830509164,0.00542064,2767.2,2766.8,0.7841]
[1739830509165,2.89644064,2767.2,2766.8,0.7841]
[1739830509327,3.0,2767.1,2766.8,0.7841]
[1739830509728,2.9270818,2767.1,2766.8,0.7841]
[1739830509930,5.89132,2766.9,2766.7,0.00542162]
[1739830510130,5.9273918,2766.8,2766.7,0.00542162]
[1739830510377,18.64169627,2766.8,2766.7,0.00542162]
[1739830512187,2.89205,2766.2,2766.1,0.00542279]
[1739830512490,2.89205,2766.2,2765.8,6.17e-06]
[1739830512491,11.14906,2765.9,2765.8,6.17e-06]
[1739830512692,14.14938,2765.6,2765.5,3.97e-06]
[1739830512841,13.39299,2765.3,2764.9,0.00542515]
[1739830513172,19.40496627,2765.3,2765.2,4.56e-06]
[1739830513472,23.20669,2765.3,2765.2,4.56e-06]
[1739830513634,26.49235361,2765.3,2765.2,4.56e-06]
[1739830514448,10.3933,2765.0,2764.6,0.15403593]
[1739830514648,10.3933,2765.0,2763.4,0.00542809]
[1739830514649,2.89425,2764.1,2764.0,0.00542691]
[1739830514836,14.95525,2764.1,2764.0,0.00542691]
[1739830515063,15.62387967,2764.1,2764.0,0.00542691]
[1739830516052,23.93627967,2764.1,2764.0,0.00542691]
[1739830516280,23.93627967,2764.1,2762.8,2.90100927]
[1739830516281,2.89537,2763.1,2762.3,4.45365647]
[1739830516482,8.3124,2763.7,2762.4,0.7776]
[1739830516483,3.0,2763.5,2762.4,0.7776]
[1739830516691,3.0,2763.7,2763.2,0.7776]
[1739830516838,0.8124,2764.0,2763.2,3.67277]
[1739830517175,13.09546535,2764.1,2763.2,0.7776]
[1739830517336,3.0,2763.7,2763.2,0.7776]
[1739830517542,0.0359718,2763.6,2763.2,0.7776]
[1739830517764,3.0,2764.0,2763.2,0.7776]
[1739830517973,3.8784,2764.0,2763.2,0.7776]
[1739830518174,3.0,2764.3,2763.2,0.7776]
[1739830518360,5.89413,2764.3,2763.5,2.89477]
[1739830518565,3.0,2764.3,2763.6,2.89477]
[1739830518991,4.4562798,2764.7,2763.5,0.03618473]
[1739830519179,2.89352,2764.8,2763.8,3.71986]
[1739830519378,0.289352,2764.7,2763.8,4.091846]
[1739830519576,0.289352,2764.7,2763.1,4.65483568]
[1739830519577,2.89422,2764.2,2763.4,2.8949]
[1739830519762,2.89444,2764.0,2763.2,2.89518]
[1739830519963,6.7518918,2764.2,2763.2,2.89518]
[1739830519964,3.0,2764.1,2763.2,2.89518]
[1739830520290,2.89376,2764.6,2763.2,0.8201]
[1739830520485,2.89376,2764.6,2763.9,3.71454]
[1739830520690,3.0,2764.5,2763.9,0.8201]
[1739830520888,4.12340357,2764.6,2764.0,2.89425]
[1739830521089,0.7919,2765.1,2764.1,0.03617789]
[1739830521391,2.89376,2764.6,2763.9,3.71455]
[1739830521550,3.0,2764.4,2763.9,0.8201]
[1739830521971,3.0,2764.4,2763.9,3.71452]
[1739830522492,2.89363,2764.7,2764.0,2.89434]
[1739830522787,3.68518,2765.1,2764.2,2.89408]
[1739830523186,2.89328,2765.1,2764.4,2.8939]
[1739830523488,3.67886,2765.4,2764.6,0.7794]
[1739830523674,2.89296,2765.4,2764.8,2.89349]
[1739830523875,5.34,2765.5,2764.6,0.7794]
[1739830524062,2.89252,2765.8,2765.2,2.89307]
[1739830524285,0.00542358,2765.7,2765.2,2.89307]
[1739830524591,0.00542358,2765.7,2765.4,2.89288]
[1739830524898,0.00542358,2765.7,2765.6,2.89268]
[1739830526661,0.00542358,2765.7,2765.4,3.64929]
[1739830526988,0.00542358,2765.7,2765.6,2.89268]
[1739830527399,0.00542358,2765.7,2765.4,3.64929]
[1739830528194,2.89278,2765.5,2764.9,2.8933]
[1739830528351,0.00542475,2765.1,2764.9,2.8933]
[1739830529793,0.00542475,2765.1,2764.7,0.7939]
[1739830529998,0.00542475,2765.1,2765.0,4.2372]
[1739830530205,0.00542475,2765.1,2765.0,8.89203568]
[1739830530511,0.00542475,2765.1,2765.0,3.6872]
[1739830533794,0.00542475,2765.1,2764.8,2.89341]
[1739830534001,0.00542475,2765.1,2764.6,3.71409]
[1739830534308,0.2988724,2765.1,2764.6,3.71409]
[1739830535216,2.89332,2765.0,2764.6,0.8204]
[1739830535364,2.89332,2765.0,2764.5,2.89381]
[1739830535710,3.1920824,2765.1,2764.5,2.89381]
[1739830536019,2.8933,2765.0,2764.4,2.89385]
[1739830536510,0.2988724,2765.1,2764.5,2.8938]
[1739830536694,3.1921024,2765.1,2764.5,2.8938]
[1739830536877,0.2988724,2765.1,2764.6,2.8937]
[1739830537291,0.2988724,2765.1,2764.6,2.89365]
[1739830537791,0.2988724,2765.1,2764.3,0.8125]
[1739830538002,0.00542475,2765.1,2764.6,2.89364]
[1739830538309,2.89864475,2765.1,2764.6,2.89364]
[1739830538664,0.00542475,2765.1,2764.4,0.83614357]
[1739830538963,0.00542475,2765.1,2764.5,2.89383]
[1739830539199,0.00542475,2765.1,2764.7,2.8936]
[1739830541908,0.00542475,2765.1,2764.8,2.89347]
[1739830543693,0.00542475,2765.1,2764.8,2.89345]
[1739830544209,0.00542475,2765.1,2764.9,2.8934]
[1739830545622,0.00542475,2765.1,2764.8,2.89345]
[1739830546110,0.00542475,2765.1,2764.9,2.89337]
[1739830546614,0.00542475,2765.1,2764.6,2.89365]
[1739830546815,0.00542475,2765.1,2764.7,2.89362]
[1739830546970,0.00542475,2765.1,2764.8,2.8935]
[1739830549378,1.12026623,2765.1,2764.7,2.89356]
[1739830549484,0.83042475,2765.1,2764.9,2.89339]
[1739830549685,0.00542475,2765.1,2765.0,2.8933]
[1739830551088,0.00542475,2765.1,2765.0,3.4433]
[1739830551729,0.00542475,2765.1,2765.0,7.15265033]
[1739830551927,0.00542475,2765.1,2765.0,7.41221801]
[1739830552221,0.00542475,2765.1,2765.0,8.85883758]
[1739830552422,4.75e-06,2765.1,2765.0,9.68353758]
[1739830553211,4.75e-06,2765.1,2765.0,12.68353758]
[1739830553792,4.75e-06,2765.1,2765.0,12.78353758]
[1739830556255,4.75e-06,2765.1,2765.0,8.97418725]
[1739830556457,4.75e-06,2765.1,2765.0,12.68353758]
[1739830557314,4.75e-06,2765.1,2765.0,12.78353758]
[1739830558711,4.75e-06,2765.1,2765.0,12.68353758]
[1739830561758,4.75e-06,2765.1,2765.0,0.59687645]
[1739830561940,0.75120475,2765.1,2765.0,0.59687645]
[1739830562347,4.75e-06,2765.1,2765.0,3.49017645]
[1739830562662,4.75e-06,2765.1,2765.0,0.59687645]
[1739830563557,4.75e-06,2765.1,2765.0,0.25956768]
[1739830563871,0.28930723,2765.1,2765.0,0.25956768]
[1739830564077,4.75e-06,2765.1,2765.0,0.25956768]
[1739830564236,4.75e-06,2765.1,2765.0,2.8933]
[1739830564581,4.75e-06,2765.1,2765.0,3.4433]
[1739830565565,4.75e-06,2765.1,2765.0,0.55]
[1739830565771,4.75e-06,2765.1,2765.0,3.4433]
[1739830568155,4.75e-06,2765.1,2765.0,0.55]
[1739830568357,4.75e-06,2765.1,2764.7,2.89361]
[1739830568944,4.75e-06,2765.1,2764.9,2.8934]
[1739830569262,4.75e-06,2765.1,2765.0,2.8933]
[1739830569830,4.75e-06,2765.1,2765.0,3.4433]
[1739830570873,4.75e-06,2765.1,2765.0,0.55]
[1739830571669,4.75e-06,2765.1,2764.9,0.00542515]
[1739830572171,4.75e-06,2765.1,2764.9,2.89882515]
[1739830573290,4.75e-06,2765.1,2764.9,0.00542515]
[1739830573475,0.8088,2765.0,2764.9,0.00542515]
[1739830575538,4.75e-06,2765.1,2765.0,3.4433]
[1739830576900,4.75e-06,2765.1,2765.0,6.47945671]
[1739830577060,4.75e-06,2765.1,2765.0,7.25445671]
[1739830578070,4.75e-06,2765.1,2765.0,7.85103397]
[1739830578242,4.75e-06,2765.1,2765.0,7.81487726]
[1739830578434,4.75e-06,2765.1,2765.0,9.50899193]
[1739830578633,4.75e-06,2765.1,2765.0,9.70899193]
[1739830584586,4.75e-06,2765.1,2765.0,13.41457166]
[1739830584784,0.00542299,2766.0,2765.6,3.67348]
[1739830584785,3.58e-06,2765.7,2765.6,3.67348]
[1739830584996,3.58e-06,2765.7,2765.6,10.96520505]
[1739830585318,3.58e-06,2765.7,2765.6,12.74041621]
[1739830586203,3.58e-06,2765.7,2765.6,13.07751162]
[1739830586498,3.58e-06,2765.7,2765.6,13.33699347]
[1739830586997,3.58e-06,2765.7,2765.6,14.06801726]
[1739830589289,6.57e-06,2766.0,2765.9,2.89236]
[1739830589498,6.57e-06,2766.0,2765.9,8.674012]
[1739830589715,6.57e-06,2766.0,2765.9,8.63787173]
[1739830590006,8.97e-06,2766.3,2766.0,3.55]
[1739830590210,8.97e-06,2766.3,2766.2,7.14762973]
[1739830590370,8.97e-06,2766.3,2766.2,8.15522168]
[1739830591123,8.97e-06,2766.3,2766.2,11.97662168]
[1739830591327,8.97e-06,2766.3,2766.2,12.31371709]
[1739830591898,8.97e-06,2766.3,2766.2,12.57319894]
[1739830593909,7.8e-07,2766.6,2766.5,6.77364]
[1739830594224,7.8e-07,2766.6,2766.5,15.48747795]
[1739830594426,7.8e-07,2766.6,2766.5,16.00134646]
[1739830595085,7.8e-07,2766.6,2766.5,16.26082831]
[1739830596017,2e-06,2766.9,2766.8,5.89142]